bitfinex-derivatives/quotes_ETHF0:USTF0_20251211
["timestamp","ask_amount","ask_price","bid_price","bid_amount"]
[1765479286813,5.63960718,3199.6,3199.5,0.15626]
[1765479287210,10.90030718,3199.6,3199.5,0.15626]
[1765479287510,10.90030718,3199.6,3198.9,0.00830376]
[1765479287700,10.90030718,3199.6,3199.0,0.15628]
[1765479287701,10.8923,3199.1,3199.0,0.15628]
[1765479288505,5.6316,3199.1,3199.0,0.15628]
[1765479289104,0.00800718,3199.6,3199.0,10.6853]
[1765479289302,9.9775,3199.5,3199.4,0.15626]
[1765479290913,9.9775,3199.0,3198.9,0.00830376]
[1765479292206,9.9775,3199.0,3198.9,0.16459376]
[1765479292605,9.9775,3199.0,3197.4,6.81026522]
[1765479292811,9.9775,3198.6,3198.5,0.1563]
[1765479293306,12.8636,3198.6,3198.5,0.1563]
[1765479293706,12.8636,3198.6,3198.5,0.15969506]
[1765479296114,4.8953,3198.6,3198.5,0.15969506]
[1765479296807,9.9775,3198.6,3198.5,0.15969506]
[1765479297315,4.8953,3198.6,3198.5,0.15970506]
[1765479297909,4.8953,3198.9,3198.8,0.15629]
[1765479298111,9.9775,3198.9,3198.8,0.15629]
[1765479299310,9.9775,3199.2,3199.1,0.15627]
[1765479300709,12.8636,3199.2,3199.1,0.15627]
[1765479301616,0.00800718,3199.6,3198.6,2.9399]
[1765479302110,9.9775,3199.4,3199.3,0.15626]
[1765479303418,9.9775,3199.1,3199.0,0.15628]
[1765479303816,9.9775,3199.5,3199.4,0.15626]
[1765479304620,12.32289472,3199.5,3199.4,0.15626]
[1765479304911,12.32289472,3199.5,3198.6,2.9399]
[1765479305118,9.9775,3199.5,3199.4,0.15626]
[1765479305316,0.00800718,3199.6,3199.5,10.43246]
[1765479305618,13.3422,3200.4,3200.3,0.15622]
[1765479305917,9.9775,3200.4,3200.3,0.15622]
[1765479306215,9.9775,3201.2,3201.1,0.15618]
[1765479306518,9.9775,3200.6,3200.5,0.15621]
[1765479306710,12.32289472,3200.6,3200.5,0.15621]
[1765479306906,4.8953,3200.6,3200.5,0.15621]
[1765479307415,9.9775,3200.6,3200.5,0.15621]
[1765479307717,9.9775,3200.6,3200.5,0.15994142]
[1765479308713,4.8953,3200.6,3200.5,0.15994142]
[1765479310021,9.9775,3200.6,3200.5,0.15994142]
[1765479311422,9.9775,3200.3,3200.2,0.00468984]
[1765479312023,9.9775,3200.3,3200.2,0.16090984]
[1765479312424,9.9775,3200.3,3200.2,0.1632116]
[1765479314023,9.9775,3200.3,3199.2,2.9399]
[1765479314326,8.7429,3199.7,3199.6,0.15625]
[1765479314924,8.7429,3199.7,3199.6,0.15858323]
[1765479315315,4.3404,3199.7,3199.6,0.15858323]
[1765479315516,8.7429,3200.2,3200.1,0.15623]
[1765479316122,11.08829472,3200.2,3200.1,0.15623]
[1765479316726,8.7429,3199.7,3199.6,0.00233323]
[1765479316928,4.3404,3199.7,3199.6,4.68003323]
[1765479317127,8.7429,3200.1,3200.0,0.15623]
[1765479319931,8.8224,3199.4,3198.0,6.82216522]
[1765479320127,8.8224,3198.7,3198.0,6.82216522]
[1765479320327,8.8224,3198.7,3198.6,0.1563]
[1765479321029,8.82620146,3198.7,3198.6,0.15998624]
[1765479324437,4.3389,3197.6,3197.5,3.88226522]
[1765479324632,8.8224,3197.8,3197.7,0.15634]
[1765479325534,8.8224,3197.8,3197.7,0.16039575]
[1765479328236,8.8224,3197.5,3197.4,0.00312659]
[1765479329438,8.8224,3197.3,3197.2,0.15637]
[1765479330642,8.8224,3197.3,3197.2,0.15887013]
[1765479332934,8.8224,3196.5,3196.4,0.15641]
[1765479333640,0.00468984,3196.8,3195.7,0.21906003]
[1765479333641,0.00468984,3196.8,3196.6,0.1564]
[1765479333842,8.8224,3196.7,3196.6,0.1564]
[1765479334236,8.8224,3196.7,3196.6,0.15994189]
[1765479339343,0.00468984,3196.8,3196.7,4.45419]
[1765479339645,8.82708984,3196.8,3196.7,0.15639]
[1765479340040,8.82708984,3196.8,3196.7,4.45419]
[1765479340249,4.34358984,3196.8,3196.7,8.87049]
[1765479340451,8.82708984,3196.8,3196.7,0.15639]
[1765479340948,5.24781025,3198.0,3196.7,14.87049]
[1765479341244,8.8224,3198.0,3197.9,0.15633]
[1765479341747,11.4156,3198.0,3197.9,0.15633]
[1765479341947,14.02591025,3198.0,3196.6,0.00354189]
[1765479342140,8.8224,3197.7,3197.6,0.00468984]
[1765479342344,8.8224,3197.7,3197.6,0.16103984]
[1765479345639,5.20351025,3198.0,3197.6,0.16103984]
[1765479345640,8.8224,3198.0,3197.9,0.15634]
[1765479346848,11.0657,3198.0,3197.6,0.00468984]
[1765479347049,8.8224,3197.7,3197.6,0.00468984]
[1765479347254,8.8224,3197.7,3197.6,8.71878984]
[1765479347549,0.00468984,3198.3,3197.6,0.00468984]
[1765479347741,8.8224,3198.1,3198.0,0.15633]
[1765479350560,8.3552,3198.1,3198.0,0.15633]
[1765479351755,8.1115,3197.7,3197.6,0.00468984]
[1765479351955,4.0952,3196.7,3196.6,0.15994189]
[1765479352257,8.1115,3196.7,3196.6,0.15994189]
[1765479352452,4.0952,3196.7,3196.6,0.00354189]
[1765479352654,8.1115,3197.1,3197.0,0.15638]
[1765479354458,8.1115,3196.7,3196.6,0.00354189]
[1765479357958,2.61031025,3197.2,3196.6,8.27174189]
[1765479358159,8.1115,3196.7,3196.6,0.00354189]
[1765479358954,8.1115,3196.7,3196.6,0.15994189]
[1765479360858,8.1115,3197.0,3196.9,0.15638]
[1765479361257,10.2815,3197.0,3196.9,0.15638]
[1765479361562,8.1115,3197.0,3196.9,0.15638]
[1765479361757,4.0952,3197.0,3196.9,4.41028]
[1765479362163,4.0952,3197.0,3196.9,8.42458]
[1765479362359,8.1115,3197.9,3197.0,2.5984]
[1765479362559,2.0445,3198.5,3198.1,0.15632]
[1765479362760,8.1115,3198.2,3197.5,2.5984]
[1765479362965,8.1115,3198.2,3198.1,0.15633]
[1765479363466,0.00380146,3198.7,3198.2,0.15632]
[1765479363765,8.11618984,3198.3,3198.2,0.15632]
[1765479363963,4.09988984,3198.3,3198.2,0.15632]
[1765479364764,4.09988984,3198.3,3198.2,4.41022]
[1765479364964,0.00380146,3198.7,3198.0,2.5984]
[1765479364965,0.00380146,3198.7,3198.6,11.0229]
[1765479365371,8.11530146,3198.7,3198.6,0.1563]
[1765479365570,4.09900146,3198.7,3198.6,0.1563]
[1765479365774,4.09900146,3198.7,3198.6,4.4102]
[1765479366167,0.00380146,3198.7,3198.6,4.4102]
[1765479366367,0.00380146,3198.7,3198.6,11.0229]
[1765479368070,2.61031025,3200.0,3199.4,8.42446]
[1765479368264,8.1115,3199.3,3198.6,2.5984]
[1765479368472,4.0952,3199.1,3198.6,2.5984]
[1765479368975,2.61031025,3200.0,3199.1,0.15627]
[1765479369170,0.00468984,3199.9,3199.1,0.16024633]
[1765479369570,8.1115,3199.2,3199.1,0.16024633]
[1765479369765,10.0242,3199.2,3199.1,0.00397633]
[1765479369973,8.1115,3199.2,3199.1,0.00397633]
[1765479370477,2.0067,3199.8,3199.1,4.25787633]
[1765479370675,2.0067,3199.8,3199.2,0.15627]
[1765479370987,0.00468984,3199.9,3199.8,7.00854]
[1765479371276,2.61031025,3201.3,3200.3,0.15622]
[1765479371464,2.61031025,3201.3,3199.8,2.5984]
[1765479371781,4.0952,3200.6,3200.5,0.1562]
[1765479372179,4.0976665,3200.6,3200.5,0.1562]
[1765479372476,8.1139665,3200.6,3200.5,0.1562]
[1765479372868,8.1115,3200.3,3200.2,0.00468984]
[1765479374278,4.0952,3200.3,3200.2,0.00468984]
[1765479374577,3.6193665,3200.6,3200.5,3.8995]
[1765479374775,0.0024665,3200.6,3200.5,7.65711]
[1765479375177,4.57651025,3202.2,3201.2,4.05567]
[1765479375980,1.9662,3202.2,3201.2,7.5009]
[1765479376185,0.00468984,3202.0,3201.7,0.15615]
[1765479376379,0.00468984,3202.0,3201.9,3.8995]
[1765479376580,0.00468984,3202.0,3201.7,0.00293116]
[1765479377480,0.00468984,3202.0,3201.9,3.8995]
[1765479377680,0.00468984,3202.0,3201.9,7.65704]
[1765479378076,3.62158984,3202.0,3201.9,0.15614]
[1765479378282,0.00468984,3202.0,3201.9,4.05564]
[1765479378781,7.22708984,3202.0,3201.9,0.15614]
[1765479379080,7.5183,3201.8,3201.7,0.00293116]
[1765479380381,0.00468984,3202.0,3201.7,3.70793116]
[1765479380984,0.00468984,3202.0,3201.7,3.86408116]
[1765479381285,0.00468984,3202.0,3201.9,7.5977]
[1765479381875,3.91748984,3202.0,3201.8,0.15616]
[1765479382082,7.5183,3201.2,3201.1,0.15619]
[1765479382277,9.85893732,3201.2,3201.1,0.15619]
[1765479383178,9.85893732,3201.2,3201.1,0.15948992]
[1765479384083,9.85893732,3201.2,3201.1,0.00329992]
[1765479384883,7.5183,3200.6,3200.5,0.15622]
[1765479385086,9.85893732,3200.6,3200.5,0.15622]
[1765479385687,7.5183,3200.3,3199.8,2.45566]
[1765479385889,7.5183,3200.3,3200.2,0.00836479]
[1765479386684,7.5183,3200.1,3199.2,2.46108]
[1765479386885,2.34063732,3199.8,3199.2,2.46108]
[1765479387089,2.34063732,3199.8,3199.3,0.15628]
[1765479387284,7.5183,3199.4,3199.3,0.15628]
[1765479387591,0.00331123,3199.4,3199.3,3.86417641]
[1765479388489,9.86224855,3199.4,3199.3,0.15917641]
[1765479388687,9.86224855,3199.4,3199.3,0.00289641]
[1765479389090,7.52161123,3199.4,3199.3,0.00289641]
[1765479389293,3.91611123,3199.4,3199.3,0.00289641]
[1765479389995,0.00331123,3199.4,3199.3,7.60059641]
[1765479390194,0.00331123,3199.4,3199.3,7.75687641]
[1765479394186,7.52161123,3199.4,3199.3,0.15917641]
[1765479407301,7.52161123,3199.4,3199.3,0.13457288]
[1765479407507,7.5183,3199.1,3199.0,0.00468984]
[1765479407700,9.85893732,3199.1,3199.0,0.00468984]
[1765479407903,9.85893732,3199.1,3199.0,0.16098984]
[1765479408397,7.5183,3199.1,3199.0,10.06582402]
[1765479408599,3.91611123,3199.4,3199.3,7.75398]
[1765479408802,3.91611123,3199.4,3199.3,3.86128]
[1765479409000,7.30861123,3199.4,3199.3,3.86128]
[1765479409499,0.00468984,3199.7,3199.0,2.31182402]
[1765479409500,0.00468984,3199.7,3199.6,6.85157]
[1765479410599,0.00861618,3199.7,3199.6,6.85157]
[1765479411207,3.46331618,3199.7,3199.6,6.85157]
[1765479411702,0.00861618,3199.7,3199.6,6.85157]
[1765479412808,6.85581618,3199.7,3199.6,0.15627]
[1765479414207,3.46331618,3199.7,3199.6,3.55827]
[1765479414407,6.85581618,3199.7,3199.6,0.15627]
[1765479414805,3.4547,3199.1,3199.0,2.31182402]
[1765479415004,6.8472,3199.1,3199.0,2.31182402]
[1765479415308,3.4547,3199.1,3199.0,9.00492402]
[1765479415702,6.8472,3199.1,3199.0,5.71162402]
[1765479415905,6.8472,3199.1,3199.0,0.16332402]
[1765479416309,3.4547,3199.4,3199.3,6.85158]
[1765479416510,6.8472,3199.4,3199.3,0.15628]
[1765479418110,0.00861618,3199.7,3199.6,6.85157]
[1765479420514,6.8472,3200.3,3199.9,0.15625]
[1765479420722,3.4547,3199.6,3199.5,5.5483]
[1765479421516,3.4547,3199.4,3199.3,0.15628]
[1765479421714,3.4547,3199.4,3199.3,3.55828]
[1765479422015,0.00221047,3199.6,3199.3,6.85158]
[1765479422319,6.8472,3199.4,3199.3,0.15628]
[1765479422717,6.8472,3199.1,3199.0,0.00702402]
[1765479423815,2.34063732,3199.2,3198.0,2.1463]
[1765479423816,6.8472,3198.7,3198.0,2.1463]
[1765479424014,3.4547,3198.0,3197.9,0.15635]
[1765479424315,6.8472,3198.0,3197.9,0.15635]
[1765479424513,6.8472,3198.0,3197.2,0.15638]
[1765479424713,3.4547,3197.3,3197.2,0.15638]
[1765479424915,3.45696988,3197.3,3197.2,0.15973108]
[1765479425107,6.84946988,3197.3,3197.2,0.00335108]
[1765479425421,3.45696988,3197.3,3197.2,0.00335108]
[1765479425921,6.84946988,3197.3,3197.2,0.00335108]
[1765479427212,0.00226988,3197.3,3197.2,6.69865108]
[1765479427416,0.00226988,3197.3,3197.2,6.85503108]
[1765479427622,0.00468984,3198.1,3197.4,2.1463]
[1765479428110,0.00468984,3198.1,3198.0,3.402]
[1765479428312,0.00468984,3198.1,3198.0,5.5483]
[1765479428509,0.00874343,3198.1,3198.0,5.5483]
[1765479428713,0.00874343,3198.1,3198.0,8.8416]
[1765479429917,6.8472,3197.3,3197.2,0.00335108]
[1765479431822,6.8472,3197.0,3196.5,2.30272]
[1765479432814,6.8472,3197.0,3196.5,2.30548113]
[1765479433318,6.8472,3197.0,3196.6,0.15641]
[1765479433519,3.4547,3196.7,3196.6,0.15641]
[1765479433720,6.8472,3196.7,3196.6,0.15641]
[1765479433919,2.34063732,3197.0,3196.6,3.17271]
[1765479434420,3.1259,3196.7,3196.6,0.15641]
[1765479434816,6.2053,3196.7,3196.6,0.15641]
[1765479435321,2.34063732,3197.2,3197.0,0.15639]
[1765479435520,3.1259,3197.1,3197.0,0.15639]
[1765479436120,6.2053,3196.6,3196.5,0.00276113]
[1765479437622,6.2053,3196.6,3196.5,0.15918113]
[1765479438519,3.1259,3196.6,3196.5,0.15918113]
[1765479438719,2.9572,3196.9,3196.8,0.1564]
[1765479439026,6.1244,3196.9,3196.8,0.1564]
[1765479440924,8.73858058,3197.3,3197.2,0.15638]
[1765479441222,8.73858058,3197.3,3196.5,0.00276113]
[1765479442418,8.73858058,3197.3,3197.2,0.15638]
[1765479442626,6.1244,3196.6,3196.5,0.00276113]
[1765479442823,6.1244,3197.0,3196.5,0.00276113]
[1765479443814,6.1244,3197.5,3197.4,0.15637]
[1765479444318,6.1244,3196.9,3196.8,0.1564]
[1765479444623,6.1244,3197.3,3197.2,0.15638]
[1765479446721,8.73858058,3197.8,3197.7,0.15636]
[1765479446927,8.73858058,3197.8,3197.0,1.8429]
[1765479447218,6.1244,3197.8,3197.5,1.8429]
[1765479447423,0.00874343,3198.1,3197.7,6.40796]
[1765479447619,0.00874343,3198.1,3197.8,0.15635]
[1765479447825,0.00874343,3198.1,3197.7,6.2516]
[1765479448525,2.9572,3198.0,3197.9,0.15635]
[1765479450326,6.1244,3198.0,3197.0,1.8429]
[1765479450522,6.1244,3198.0,3197.5,1.8429]
[1765479450726,0.00874343,3198.1,3198.0,8.0945]
[1765479450924,0.00874343,3198.1,3198.0,8.25085]
[1765479454928,6.13314343,3198.1,3198.0,5.04305]
[1765479455117,6.13314343,3198.1,3198.0,1.99925]
[1765479457031,6.1244,3197.6,3197.5,4.8867]
[1765479457225,2.9572,3197.6,3197.5,8.0945]
[1765479457728,0.00874343,3198.1,3197.5,8.0945]
[1765479458224,2.9572,3197.6,3197.5,8.0945]
[1765479460431,0.00874343,3198.1,3197.5,8.0945]
[1765479460730,2.9572,3197.6,3197.5,8.0945]
[1765479460925,0.00874343,3198.1,3198.0,8.0945]
[1765479461327,0.00874343,3198.1,3198.0,8.25085]
[1765479461521,0.97714273,3199.3,3198.3,0.15633]
[1765479461722,6.1244,3198.4,3198.3,0.15633]
[1765479461922,6.1244,3198.1,3198.0,1.8429]
[1765479462325,6.1244,3198.1,3198.0,4.8867]
[1765479462525,2.95990358,3198.1,3198.0,4.8867]
[1765479463327,6.1244,3198.0,3197.9,0.15635]
[1765479465122,6.1244,3198.0,3197.7,0.00468984]
[1765479465123,0.00270358,3198.1,3198.0,8.25085]
[1765479465525,6.12710358,3198.1,3198.0,0.15635]
[1765479466828,0.00270358,3198.1,3198.0,8.25085]
[1765479471941,5.88970358,3198.1,3198.0,5.04305]
[1765479472141,2.95840358,3198.1,3198.0,5.04305]
[1765479472344,0.00270358,3198.1,3198.0,7.99485]
[1765479472939,2.95840358,3198.1,3198.0,7.99485]
[1765479473839,5.88970358,3198.1,3198.0,5.04305]
[1765479474142,5.88970358,3198.1,3198.0,1.99925]
[1765479474333,5.887,3197.6,3197.0,1.8429]
[1765479475445,5.887,3197.6,3197.0,1.84758984]
[1765479475637,5.887,3197.6,3197.5,1.87447]
[1765479475837,5.887,3197.6,3197.5,0.15637]
[1765479479949,8.50118058,3197.6,3197.5,0.15637]
[1765479480143,8.50118058,3197.6,3197.0,1.84758984]
[1765479480144,5.887,3197.1,3197.0,7.82147984]
[1765479480349,5.887,3196.6,3196.5,0.00276113]
[1765479480546,8.50118058,3196.6,3196.5,0.00276113]
[1765479482145,2.9557,3196.6,3196.5,4.58656113]
[1765479482350,3.84128058,3197.5,3196.6,0.15641]
[1765479482741,1.01084966,3197.4,3196.6,0.15641]
[1765479482946,2.61418058,3197.5,3196.5,1.72086113]
[1765479484249,5.56988058,3197.5,3197.4,2.8657]
[1765479484448,2.61418058,3197.8,3197.5,1.7181]
[1765479484653,5.56988058,3197.8,3197.7,5.8175]
[1765479484852,2.9557,3197.8,3197.7,5.8175]
[1765479485050,2.9557,3197.6,3197.5,4.74017]
[1765479485250,0.00270358,3198.1,3197.6,0.15636]
[1765479485950,2.9557,3197.8,3197.7,3.02206]
[1765479486251,2.95840358,3198.1,3198.0,4.5838]
[1765479486447,2.95840358,3198.1,3198.0,7.5356]
[1765479486848,5.887,3198.0,3197.9,0.15635]
[1765479488253,5.887,3198.0,3197.5,1.7181]
[1765479488450,5.887,3197.3,3197.2,0.15638]
[1765479488854,5.887,3196.6,3196.5,1.87728113]
[1765479489157,5.887,3196.6,3196.5,0.15918113]
[1765479489358,2.9557,3196.6,3196.5,4.74298113]
[1765479489557,2.61418058,3197.0,3196.5,7.69478113]
[1765479489754,5.887,3196.6,3196.5,0.15918113]
[1765479490666,2.9557,3196.6,3196.5,1.87728113]
[1765479490957,5.887,3196.6,3196.5,0.15918113]
[1765479491148,2.9557,3196.6,3196.5,4.74298113]
[1765479491456,2.61418058,3197.0,3196.5,1.72086113]
[1765479491656,5.56988058,3197.0,3196.9,3.0221]
[1765479491857,5.56988058,3197.0,3196.9,0.1564]
[1765479492257,5.56988058,3197.0,3196.9,3.0221]
[1765479492551,0.8143,3198.0,3196.9,3.0221]
[1765479492552,2.61418058,3197.5,3197.0,1.87449]
[1765479492950,2.9557,3197.1,3197.0,1.87449]
[1765479493350,2.9557,3197.1,3197.0,4.74019]
[1765479493561,5.887,3197.1,3197.0,0.15639]
[1765479496162,5.3912,3197.4,3197.3,0.15638]
[1765479497954,2.6756,3197.4,3197.3,5.51798]
[1765479498169,5.28978058,3198.0,3197.9,2.7065]
[1765479498861,2.47860358,3198.1,3198.0,6.98585]
[1765479499055,2.47860358,3198.1,3198.0,4.33915]
[1765479499256,5.07990358,3198.1,3198.0,0.15635]
[1765479500763,0.00270358,3198.1,3198.0,6.98585]
[1765479501157,2.34967474,3198.1,3198.0,6.98585]
[1765479501853,0.00270358,3198.1,3198.0,6.98585]
[1765479502060,2.47860358,3198.1,3198.0,1.75845]
[1765479502249,2.47860358,3198.1,3198.0,4.33915]
[1765479502454,2.47860358,3198.1,3198.0,6.98585]
[1765479502655,2.47860358,3198.1,3198.0,1.75845]
[1765479502656,7.42687474,3198.1,3198.0,1.75845]
[1765479502962,5.0772,3197.6,3197.5,0.15637]
[1765479503256,7.42417116,3197.6,3196.5,1.72086113]
[1765479503460,2.34697116,3197.2,3196.5,1.72086113]
[1765479504065,4.82287116,3197.2,3197.1,5.2274]
[1765479504361,5.0772,3197.1,3196.5,1.72086113]
[1765479504561,2.4759,3197.1,3197.0,2.5807]
[1765479504961,7.42417116,3197.3,3197.2,0.15639]
[1765479505670,2.4759,3197.6,3197.5,2.5807]
[1765479505968,2.4759,3197.4,3197.3,2.73708]
[1765479506262,5.0772,3197.4,3197.3,0.15638]
[1765479506668,2.4759,3197.4,3197.3,2.73708]
[1765479506869,5.0772,3197.4,3197.3,0.15638]
[1765479507057,5.0772,3197.4,3196.5,1.72086113]
[1765479507362,2.34697116,3197.3,3196.5,1.72086113]
[1765479507766,2.34697116,3197.3,3197.2,5.2274]
[1765479508563,2.34697116,3197.3,3197.2,5.38379]
[1765479508762,2.4759,3196.6,3196.5,2.58346113]
[1765479508957,2.4759,3196.6,3196.5,5.23016113]
[1765479510058,4.82287116,3196.7,3196.6,5.38381]
[1765479510362,7.42417116,3196.7,3196.6,5.38381]
[1765479510559,7.42417116,3196.7,3196.6,0.15641]
[1765479512058,7.42417116,3196.7,3196.6,2.73711]
[1765479512265,2.4759,3196.7,3196.6,5.38381]
[1765479512457,2.4759,3196.7,3196.6,2.73711]
[1765479512458,5.0772,3196.7,3196.6,2.73711]
[1765479512662,5.0772,3196.7,3196.6,0.15641]
[1765479513768,2.4759,3196.7,3196.6,5.38381]
[1765479513963,5.0772,3196.7,3196.6,0.15641]
[1765479514364,2.4759,3196.9,3196.8,2.7371]
[1765479514560,5.0772,3196.9,3196.8,2.7371]
[1765479514760,5.0772,3196.9,3196.8,0.1564]
[1765479515367,5.0772,3196.3,3195.0,1.6021]
[1765479515671,7.42417116,3196.3,3196.2,0.16111984]
[1765479516268,7.42417116,3196.3,3196.2,0.16475642]
[1765479516565,5.0772,3196.3,3196.2,0.16475642]
[1765479516865,5.0772,3196.3,3196.2,2.74545642]
[1765479517263,5.0772,3196.3,3196.2,0.16475642]
[1765479517868,2.4759,3196.3,3196.2,5.39215642]
[1765479518062,0.00468984,3196.6,3196.5,6.98592]
[1765479518370,2.48058984,3196.6,3196.5,6.98592]
[1765479518567,0.00468984,3196.6,3196.5,6.98592]
[1765479519272,7.42417116,3197.6,3197.5,0.15637]
[1765479519472,5.0772,3197.6,3197.5,0.15637]
[1765479519667,2.4759,3197.6,3197.5,5.38377]
[1765479519866,7.42417116,3197.8,3197.7,0.15636]
[1765479520272,5.0772,3198.0,3197.9,0.15635]
[1765479520773,6.0504,3198.0,3197.9,0.15635]
[1765479522766,2.4759,3198.0,3197.9,5.38375]
[1765479522962,5.0772,3198.0,3197.9,2.73705]
[1765479523168,0.00739342,3198.1,3198.0,5.38375]
[1765479523873,2.48329342,3198.1,3198.0,5.38375]
[1765479524275,5.08459342,3198.1,3198.0,2.73705]
[1765479525078,5.08459342,3198.1,3198.0,0.15635]
[1765479526774,5.08459342,3198.1,3198.0,2.73705]
[1765479527379,0.00739342,3198.1,3198.0,6.98585]
[1765479528176,5.08459342,3198.1,3198.0,5.38375]
[1765479528376,0.00739342,3198.1,3198.0,6.98585]
[1765479529667,4.9025,3199.2,3199.1,0.15629]
[1765479530775,4.90532125,3199.2,3199.1,0.15909891]
[1765479531072,4.90532125,3199.2,3198.8,2.39478984]
[1765479531073,2.5077,3198.9,3198.8,2.39478984]
[1765479531672,4.9025,3198.9,3198.8,2.39478984]
[1765479531878,4.9025,3198.9,3198.8,0.00468984]
[1765479532081,4.9025,3198.9,3198.8,0.0081617]
[1765479532580,4.9025,3198.9,3198.8,0.1644717]
[1765479533478,4.9025,3198.9,3198.8,2.5545717]
[1765479533776,4.9025,3198.9,3198.8,0.1644717]
[1765479534977,4.9025,3198.9,3197.5,1.6021]
[1765479535179,4.9025,3198.4,3198.3,2.3901]
[1765479535480,5.6493,3199.0,3198.9,0.1563]
[1765479535876,4.9025,3198.8,3198.0,1.5072]
[1765479536070,4.9025,3198.8,3198.1,0.00468984]
[1765479536275,4.9025,3198.8,3198.7,2.3901]
[1765479536676,4.9025,3198.8,3198.1,0.00468984]
[1765479536877,2.5077,3198.8,3198.7,4.8758]
[1765479537278,2.51052125,3199.2,3199.1,5.03209]
[1765479537482,0.00282125,3199.2,3199.1,5.03209]
[1765479539476,4.90532125,3199.2,3199.1,0.15629]
[1765479541076,7.25229241,3199.2,3199.1,0.15629]
[1765479541674,0.00282125,3199.2,3199.1,5.03209]
[1765479542083,0.00468984,3199.5,3199.4,5.03208]
[1765479543198,0.00717095,3199.5,3199.4,5.03208]
[1765479543386,0.00717095,3199.5,3199.0,1.5072]
[1765479543387,4.9025,3200.2,3200.1,0.15624]
[1765479543688,2.5077,3200.6,3200.5,2.54632]
[1765479544287,4.9025,3200.6,3200.5,0.15622]
[1765479544490,4.9025,3200.6,3199.5,1.5072]
[1765479544491,4.9025,3200.1,3199.5,1.5072]
[1765479544689,7.24947116,3200.1,3199.5,1.51530519]
[1765479545592,7.24947116,3200.1,3200.0,0.15625]
[1765479545789,4.9025,3200.4,3200.3,0.15623]
[1765479546587,0.00387686,3200.6,3200.5,5.03202]
[1765479546786,0.00468984,3200.9,3200.8,5.03201]
[1765479547186,4.90718984,3200.9,3200.8,0.15621]
[1765479547387,0.00468984,3200.9,3200.8,5.03201]
[1765479547590,1.4535,3202.0,3200.8,6.0]
[1765479547783,1.45646099,3202.0,3201.3,0.15618]
[1765479547994,4.9025,3201.4,3201.3,0.15618]
[1765479549296,0.00468984,3201.7,3201.3,5.03198]
[1765479549891,0.00468984,3201.7,3201.0,1.51188984]
[1765479550293,2.51238984,3201.7,3201.0,1.51188984]
[1765479550487,0.00468984,3201.7,3201.6,6.53917]
[1765479550900,2.5077,3201.4,3201.3,0.15618]
[1765479551198,2.5077,3201.4,3201.0,0.00468984]
[1765479551199,0.00468984,3201.7,3201.6,6.383]
[1765479551600,0.00468984,3201.7,3201.6,6.53917]
[1765479552393,0.00468984,3201.7,3201.6,5.03197]
[1765479552599,2.51238984,3201.7,3201.6,2.54627]
[1765479552999,2.51238984,3201.7,3201.6,0.15617]
[1765479553202,4.90718984,3201.7,3201.6,0.15617]
[1765479553402,0.00468984,3201.7,3201.6,6.53917]
[1765479553801,2.34697116,3202.9,3201.6,1.5072]
[1765479554002,2.4356,3202.7,3202.6,2.38432]
[1765479554199,4.7961,3203.0,3202.9,0.1561]
[1765479554393,5.79345463,3203.0,3202.9,0.1561]
[1765479554696,4.7961,3202.0,3201.9,0.15615]
[1765479555197,4.7961,3202.5,3202.4,0.15613]
[1765479555397,5.79332391,3202.5,3202.4,0.15613]
[1765479555998,2.4356,3202.0,3201.9,0.00301809]
[1765479556296,4.7961,3202.0,3201.9,0.00301809]
[1765479556596,2.20274882,3202.8,3201.9,4.63751809]
[1765479556800,0.99722959,3202.7,3201.9,4.63751809]
[1765479556999,1.4101,3202.5,3201.9,4.63751809]
[1765479557202,0.99722959,3202.4,3201.9,4.63751809]
[1765479557402,0.99722959,3202.3,3201.9,4.63751809]
[1765479557605,0.99722959,3202.2,3202.1,4.79064]
[1765479557904,0.99722959,3202.8,3202.3,0.15613]
[1765479558204,2.4356,3202.4,3202.3,2.38433]
[1765479558904,2.3821,3202.6,3202.5,2.50212]
[1765479559201,3.37912524,3202.6,3202.5,2.50212]
[1765479559604,5.61232524,3202.6,3202.5,0.15612]
[1765479560900,0.99702524,3202.6,3202.5,6.16112]
[1765479561304,0.00272763,3203.0,3202.9,4.80101]
[1765479561604,0.99928385,3203.0,3202.9,4.80101]
[1765479563103,5.61458385,3203.0,3202.9,2.50211]
[1765479563398,0.99928385,3203.0,3202.9,4.80101]
[1765479566199,5.61458385,3203.0,3202.9,2.50211]
[1765479566404,3.38138385,3203.0,3202.9,4.80101]
[1765479566601,5.61458385,3203.0,3202.9,2.50211]
[1765479566805,5.61458385,3203.0,3202.9,0.15611]
[1765479568108,7.27313267,3203.0,3202.9,0.15611]
[1765479568705,2.65783267,3203.0,3202.9,4.80101]
[1765479569311,5.03993267,3203.0,3202.9,4.80101]
[1765479569514,2.65783267,3203.0,3202.9,4.80101]
[1765479569710,0.99928385,3203.0,3202.9,4.80101]
[1765479571906,3.38138385,3203.0,3202.9,4.80101]
[1765479572108,7.27313267,3203.0,3202.9,2.50211]
[1765479572410,5.61458385,3203.0,3202.9,2.50211]
[1765479572814,5.61458385,3203.0,3202.9,0.15611]
[1765479573112,7.27313267,3203.0,3202.9,2.50211]
[1765479574210,0.99928385,3203.0,3202.9,4.80101]
[1765479574402,1.65854882,3203.6,3203.5,6.16108]
[1765479574608,6.27384882,3203.6,3203.5,0.15608]
[1765479574809,6.27384882,3203.6,3203.5,2.50208]
[1765479575006,1.65854882,3203.8,3203.7,4.6449]
[1765479575211,4.59510919,3204.3,3204.2,2.346]
[1765479575413,4.05616737,3204.3,3204.2,4.64740972]
[1765479575713,6.28936737,3204.3,3204.2,0.00250972]
[1765479575914,4.61839325,3204.3,3204.2,0.15854972]
[1765479576116,6.28938232,3204.3,3204.2,0.15854972]
[1765479576509,4.61839325,3204.3,3204.2,0.15854972]
[1765479576708,6.29013606,3204.3,3204.2,0.15854972]
[1765479576915,6.2901364,3204.3,3204.2,0.15854972]
[1765479577115,4.61839325,3204.3,3204.2,0.15854972]
[1765479577315,6.29056396,3204.3,3204.2,0.15854972]
[1765479578016,4.61839325,3204.3,3204.2,0.15854972]